fUST/lending_fUST_20260121
["ID","MTS","AMOUNT","RATE_DAILY","PERIOD"]
[402900934,1768964819294,-500.0,0.00014999,2]
[402900935,1768964819316,-500.0,0.00014999,2]
[402900936,1768964819335,-189.87157589,0.00014999,2]
[402900937,1768964819356,-500.0,0.00014999,2]
[402900938,1768964819376,-229.08497333,0.00014999,2]
[402900939,1768964819396,-534.11092648,0.00014999,2]
[402900940,1768964819418,-541.06382791,0.00014999,2]
[402900941,1768964819440,-252.30765572,0.00014999,2]
[402900942,1768964819459,-2271.71556691,0.00015,2]
[402900943,1768964853216,625.73318934,0.00014,2]
[402900944,1768964862837,290.4,0.00012329,2]
[402900945,1768964873539,242.0,0.00012329,2]
[402900946,1768964884166,201.66,0.00012329,2]
[402900948,1768964894553,168.05,0.00012329,2]
[402900949,1768964904977,840.3,0.00012329,2]
[402901042,1768965032998,-1480.80375372,0.00014702,2]
[402901045,1768965033009,-637.325,0.00014702,2]
[402901291,1768965038697,-2881.87124628,0.00014702,2]
[402901293,1768965038707,-633.0,0.0001485,2]
[402901295,1768965038716,-198.71076445,0.00014875,2]
[402901296,1768965038725,-166.66666668,0.000149,2]
[402901297,1768965038734,-166.66666666,0.00014924,2]
[402901298,1768965038746,-166.66666666,0.00014948,2]
[402901299,1768965038755,-310518.50489806,0.00015,2]
[402901305,1768965040804,-276.91161237,0.00015,2]
[402901308,1768965044083,-1801.189085,0.00015,2]
[402901324,1768965650155,458.16461657,0.00013847,2]
[402901325,1768965652952,1830.82580782,0.00013847,2]
[402901326,1768965759776,300.0,0.000139,2]
[402901327,1768965850002,5000.0,0.00014,2]
[402901328,1768966066796,5000.0,0.00014,2]
[402901357,1768966231728,-1686.04178086,0.00014263,2]
[402901358,1768966231739,-1054.49618158,0.00014263,2]
[402901360,1768966231782,-619.84912104,0.00014263,2]
[402901380,1768966237779,-525.13145578,0.00014263,2]
[402901381,1768966237835,-1114.48146074,0.00014263,2]
[402901382,1768966237844,-624.0,0.00014263,2]
[402901383,1768966237853,-200.9789103,0.00014335,2]
[402901384,1768966237862,-178.71,0.000147,2]
[402901385,1768966237871,-349.763,0.000147,2]
[402901386,1768966237880,-292.43179539,0.00014999,2]
[402901387,1768966237889,-594.09712798,0.00014999,2]
[402901388,1768966237899,-789.44099132,0.00015,2]
[402901389,1768966237911,-791.96770349,0.00015,2]
[402901390,1768966237921,-3021.62025626,0.00015,2]
[402901500,1768966239937,-1309.74626095,0.00015,2]
[402901505,1768966240377,5000.0,0.00014,2]
[402901578,1768966743753,168.67149114,0.00013273,2]
[402901585,1768967045063,5000.0,0.00014,2]
[402901586,1768967136140,-5000.0,0.00014263,2]
[402901587,1768967136330,-626.0,0.00014407,2]
[402901588,1768967136357,-202.1950267,0.00014517,2]
[402901589,1768967136380,-1200.0,0.00014798,2]
[402901590,1768967136402,-300.0,0.00014799,2]
[402901591,1768967136421,-300.0,0.00014799,2]
[402901592,1768967136440,-300.0,0.00014799,2]
[402901593,1768967136460,-2416.87548248,0.000148,2]
[402901594,1768967136480,-377.1220959,0.000149,2]
[402901595,1768967136502,-500.0,0.00014994,2]
[402901596,1768967136522,-500.0,0.00014994,2]
[402901597,1768967136543,-500.0,0.00014994,2]
[402901598,1768967136564,-500.0,0.00014994,2]
[402901599,1768967136585,-500.0,0.00014994,2]
[402901600,1768967136605,-299.66180538,0.00014994,2]
[402901601,1768967136627,-500.0,0.00014994,2]
[402901602,1768967136647,-500.0,0.00014994,2]
[402901603,1768967136667,-500.0,0.00014994,2]
[402901604,1768967136689,-500.0,0.00014994,2]
[402901605,1768967136710,-399.36555315,0.00014994,2]
[402901606,1768967136731,-53.13717539,0.00014994,2]
[402901610,1768967162494,1000.0,0.00013996,2]
[402901611,1768967240138,-5000.0,0.00014844,2]
[402901612,1768967240158,-7962.45074915,0.00014895,2]
[402901613,1768967240179,-516.68045543,0.00014994,2]
[402901614,1768967240198,-198.15112617,0.00014994,2]
[402901615,1768967240217,-320.225,0.00014995,2]
[402901616,1768967240236,-178.71,0.00014995,2]
[402901617,1768967240265,-155.0,0.00014996,2]
[402901618,1768967240287,-155.0,0.00014997,2]
[402901619,1768967240306,-503.84505778,0.00014999,2]
[402901620,1768967240328,-181.304,0.00014999,2]
[402901621,1768967240349,-269.76612105,0.00014999,2]
[402901628,1768967431880,-569.40976379,0.00014222,2]
[402901629,1768967431892,-53.59023621,0.00014222,2]
[402901630,1768967431901,-268.710355,0.00014222,2]
[402901631,1768967431910,-5000.0,0.00014849,2]
[402901632,1768967431919,-1200.0,0.00014998,2]
[402901633,1768967431929,-55.7586927,0.00014999,2]
[402901634,1768967431938,-494.86076639,0.00014999,2]
[402901635,1768967431947,-211.04061702,0.00014999,2]
[402901636,1768967431963,-285.53529231,0.00014999,2]
[402901637,1768967431972,-2790.30737437,0.00015,2]
[402901638,1768967431983,-978.106494,0.00015,2]
[402901639,1768967431994,-8051.08220446,0.00015,2]
[402901640,1768967432006,-778.48675578,0.00015,2]
[402901642,1768967432020,-13032.53773872,0.00015,2]
[402901644,1768967432031,-451.39396205,0.00015,2]
[402901856,1768967438019,-5000.0,0.0001485,2]
[402901857,1768967438030,-23247.39014099,0.00015,2]
[402901858,1768967438044,-34698.95566922,0.00015,2]
[402901859,1768967438056,-2635.25177382,0.00015,2]
[402901899,1768967440166,-250.77106545,0.00015,2]
[402901901,1768967440177,-5510.08642875,0.00015,2]
[402901907,1768967440218,-650.76259487,0.00015,2]
[402902190,1768967443043,-7650.38112146,0.00015,2]
[402902479,1768967445961,-4042.6665375,0.00015,2]
[402902522,1768967446382,-1774.928571,0.00015,2]
[402902525,1768967446401,-5352.66581445,0.00015,2]
[402902537,1768967446508,-1715.68138995,0.00015,2]
[402902873,1768967653185,5000.0,0.00014,2]
[402902874,1768967676543,5000.0,0.00014,2]
[402902875,1768967698870,5000.0,0.00014,2]
[402902876,1768967704115,333.61593307,0.00013273,2]
[402902877,1768967721757,5000.0,0.00014,2]
[402902878,1768967744699,5000.0,0.00014,2]
[402902879,1768967767082,5000.0,0.00014,2]
[402902880,1768967789839,5000.0,0.00014,2]
[402902881,1768968126344,500.0,0.00013273,2]
[402902882,1768968126388,1089.26667656,0.00013821,2]
[402902883,1768968204420,5000.0,0.00014,2]
[402902884,1768968225070,369.09,0.00012329,2]
[402902885,1768968226866,5000.0,0.00014,2]
[402902886,1768968235327,307.57,0.00012329,2]
[402902887,1768968245964,256.31,0.00012329,2]
[402902888,1768968249594,5000.0,0.00014,2]
[402902889,1768968252258,500.0,0.00013699,2]
[402902890,1768968256386,213.59,0.00012329,2]
[402902891,1768968266862,177.99,0.00012329,2]
[402902892,1768968271890,5000.0,0.00014,2]
[402902893,1768968277318,890.0,0.00012329,2]
[402902894,1768968295794,5000.0,0.00014,2]
[402902895,1768968318280,5000.0,0.00014,2]
[402902896,1768968333115,-691.2189,0.00014247,2]
[402902897,1768968341802,3285.7622855,0.00014,2]
[402902898,1768968440105,-500.0,0.00013273,2]
[402902899,1768968440125,-241.11187728,0.00013486,2]
[402902900,1768968440143,-500.0,0.00013699,2]
[402902901,1768968440161,-500.0,0.00013699,2]
[402902902,1768968440180,-1000.0,0.00013821,2]
[402902903,1768968440198,-538.928378,0.0001399,2]
[402902904,1768968440216,-1714.2377145,0.00014,2]
[402902905,1768968440235,-1000.0,0.00014247,2]
[402902906,1768968440253,-507.59078538,0.00014247,2]
[402902907,1768968440271,-500.0,0.00014342,2]
[402902908,1768968440291,-625.0,0.00014342,2]
[402902909,1768968440312,-1000.0,0.00014368,2]
[402902910,1768968440330,-153.0,0.00014452,2]
[402902911,1768968440348,-250.74929506,0.00014668,2]
[402902912,1768968440367,-300.0,0.00014794,2]
[402902913,1768968440386,-1308.7811,0.00014795,2]
[402902914,1768968440405,-9024.3463012,0.00014797,2]
[402902915,1768968440423,-4124.56936822,0.00014799,2]
[402902916,1768968440442,-549.0,0.00014894,2]
[402902917,1768968440461,-579.92661863,0.00014895,2]
[402902918,1768968440480,-312.44315951,0.00014895,2]
[402902919,1768968440501,-435.20624123,0.00014895,2]
[402902920,1768968440520,-74945.8500612,0.00014896,2]
[402902921,1768968440539,-5000.0,0.00014897,2]
[402902922,1768968440560,-39953.28235821,0.00014899,2]
[402902937,1768968572084,-5000.0,0.0001314,2]
[402902938,1768968572103,-500.0,0.00013273,2]
[402902939,1768968572122,-500.0,0.00013273,2]
[402902941,1768968572140,-509.41771622,0.00013273,2]
[402902942,1768968572158,-5.70010195,0.00013414,2]
[402903000,1768968638067,-5000.0,0.0001328,2]
[402903002,1768968638077,-165.67525565,0.00013414,2]
[402903004,1768968638086,-300.0,0.00013673,2]
[402903006,1768968638096,-500.0,0.00013699,2]
[402903008,1768968638105,-500.0,0.00013699,2]
[402903009,1768968638115,-300.0,0.0001382,2]
[402903011,1768968638124,-1151.0,0.0001382,2]
[402903013,1768968638133,-1000.0,0.00013821,2]
[402903016,1768968638146,-1000.0,0.00013821,2]
[402903018,1768968638156,-304.01066955,0.00014221,2]
[402903020,1768968638165,-505.66602925,0.00014247,2]
[402903022,1768968638175,-1000.0,0.00014247,2]
[402903024,1768968638184,-378.0985263,0.000143,2]
[402903026,1768968638193,-501.77941754,0.00014368,2]
[402903028,1768968638202,-1000.0,0.00014368,2]
[402903030,1768968638211,-378.0985263,0.000144,2]
[402903032,1768968638220,-1500.0,0.00014795,2]
[402903034,1768968638229,-7896.30301355,0.000148,2]
[402903036,1768968638238,-150.0,0.0001484,2]
[402903038,1768968638248,-718.0,0.0001484,2]
[402903040,1768968638257,-150.0,0.0001484,2]
[402903042,1768968638267,-5000.0,0.00014897,2]
[402903044,1768968638276,-218.71021165,0.00014898,2]
[402903046,1768968638286,-405.94863305,0.00014898,2]
[402903048,1768968638295,-191.06584357,0.00014898,2]
[402903050,1768968638305,-960046.71764179,0.00014899,2]
[402903052,1768968638315,-151.0,0.000149,2]
[402903054,1768968638324,-6981.5893284,0.000149,2]
[402903056,1768968638333,-42193.82819528,0.000149,2]
[402903058,1768968638342,-500.0,0.00014973,2]
[402903060,1768968638352,-7956.4555728,0.00014974,2]
[402903062,1768968638362,-153.01638257,0.00014977,2]
[402903064,1768968638371,-718.0,0.00014977,2]
[402903066,1768968638380,-150.0,0.00014977,2]
[402903068,1768968638389,-288.511,0.0001499,2]
[402903070,1768968638398,-178.71,0.0001499,2]
[402903072,1768968638407,-500.0,0.00014998,2]
[402903074,1768968638415,-500.0,0.00014998,2]
[402903076,1768968638425,-500.0,0.00014999,2]
[402903078,1768968638434,-500.0,0.00014999,2]
[402903080,1768968638443,-500.0,0.00014999,2]
[402903082,1768968638454,-231.03211177,0.00014999,2]
[402903084,1768968638463,-380027.64309115,0.00015,2]
[402903087,1768968638480,-406854.53933465,0.00015,2]
[402903089,1768968638490,-315.34117181,0.00015,2]
[402903090,1768968638499,-1261.36468725,0.00015,2]
[402903091,1768968638509,-2838.07054631,0.00015,2]
[402903092,1768968638518,-5045.45874899,0.00015,2]
[402903093,1768968638527,-7883.5292953,0.00015,2]
[402903095,1768968638537,-153.0,0.00015,2]
[402903098,1768968638547,-151.0,0.00015,2]
[402903100,1768968638556,-151.0,0.00015,2]
[402903101,1768968638566,-151.0,0.00015,2]
[402903104,1768968638575,-151.0,0.00015,2]
[402903106,1768968638584,-151.0,0.00015,2]
[402903108,1768968638594,-245.63081814,0.00015,2]
[402903110,1768968638603,-10000.0,0.00015057,2]
[402903112,1768968638613,-10000.0,0.00015057,2]
[402903114,1768968638622,-1314.18,0.00015057,2]
[402903116,1768968638632,-180.47408,0.00015068,2]
[402903118,1768968638641,-246.0,0.00015073,2]
[402903119,1768968638651,-246.0,0.00015073,2]
[402903121,1768968638660,-153.0,0.000151,2]
[402903123,1768968638669,-246.0,0.00015101,2]
[402903125,1768968638678,-246.0,0.00015101,2]
[402903127,1768968638688,-246.0,0.00015107,2]
[402903129,1768968638698,-10000.0,0.00015114,2]
[402903132,1768968638707,-10000.0,0.00015114,2]
[402903133,1768968638716,-10000.0,0.00015114,2]
[402903135,1768968638726,-10000.0,0.00015114,2]
[402903138,1768968638736,-10000.0,0.00015114,2]
[402903140,1768968638746,-10000.0,0.00015114,2]
[402903142,1768968638756,-4776.54,0.00015114,2]
[402903143,1768968638767,-718.0,0.00015114,2]
[402903144,1768968638777,-150.0,0.00015114,2]
[402903145,1768968638790,-420.0,0.00015143,2]
[402903146,1768968638800,-246.0,0.00015155,2]
[402903147,1768968638809,-242.0,0.000152,2]
[402903148,1768968638819,-153.0,0.000152,2]
[402903149,1768968638831,-718.0,0.00015251,2]
[402903150,1768968638841,-156.48303694,0.00015251,2]
[402903151,1768968638850,-246.0,0.00015314,2]
[402903152,1768968638860,-246.0,0.00015339,2]
[402903153,1768968638869,-1000.0,0.00015342,2]
[402903154,1768968638878,-246.0,0.00015365,2]
[402903155,1768968638888,-718.0,0.00015388,2]
[402903156,1768968638897,-198.2428968,0.000154,2]
[402903157,1768968638907,-190.83,0.000154,10]
[402903158,1768968638916,-200.74901906,0.000154,2]
[402903159,1768968638925,-234.59498067,0.000154,2]
[402903160,1768968638935,-160.84582196,0.000154,2]
[402903161,1768968638945,-416.82058311,0.000154,2]
[402903162,1768968638954,-212.34785127,0.000154,2]
[402903163,1768968638964,-198.82527345,0.000154,2]
[402903164,1768968638973,-1291.0,0.000154,2]
[402903165,1768968638983,-246.0,0.00015417,2]
[402903166,1768968638993,-246.0,0.00015439,2]
[402903167,1768968639002,-246.0,0.00015478,2]
[402903168,1768968639011,-233.79119154,0.00015479,2]
[402903169,1768968639020,-537.6845,0.00015479,2]
[402903170,1768968639031,-162.8901967,0.00015479,2]
[402903171,1768968639040,-300.73,0.00015479,2]
[402903172,1768968639050,-445.202766,0.00015479,2]
[402903173,1768968639060,-2150.738,0.00015479,2]
[402903174,1768968639070,-162.380719,0.00015479,2]
[402903175,1768968639079,-168.3888056,0.00015479,2]
[402903176,1768968639088,-284.5120152,0.00015486,2]
[402903177,1768968639098,-150.0,0.00015516,2]
[402903178,1768968639107,-152.15271456,0.00015516,2]
[402903179,1768968639116,-151.0647238,0.00015516,2]
[402903180,1768968639127,-150.0,0.00015516,2]
[402903181,1768968639137,-150.0,0.00015516,2]
[402903182,1768968639146,-500.0,0.00015516,2]
[402903183,1768968639156,-150.0,0.00015516,2]
[402903184,1768968639165,-150.0,0.00015516,2]
[402903185,1768968639174,-150.0,0.00015516,2]
[402903186,1768968639184,-150.0,0.00015516,2]
[402903187,1768968639194,-718.0,0.00015525,2]
[402903188,1768968639203,-168.0,0.0001553,2]
[402903189,1768968639213,-246.0,0.00015563,2]
[402903190,1768968639223,-246.0,0.00015614,2]
[402903191,1768968639232,-150.0,0.00015653,2]
[402903192,1768968639242,-500.79251461,0.00015653,2]
[402903193,1768968639252,-150.16342399,0.00015653,2]
[402903194,1768968639262,-150.20321336,0.00015653,2]
[402903195,1768968639271,-150.0,0.00015653,2]
[402903196,1768968639280,-150.0,0.00015653,2]
[402903197,1768968639289,-150.0,0.00015653,2]
[402903198,1768968639299,-718.0,0.00015662,2]
[402903199,1768968639308,-246.0,0.00015674,2]
[402903200,1768968639317,-160.0,0.000157,2]
[402903201,1768968639327,-160.0,0.000157,2]
[402903202,1768968639336,-150.0,0.0001579,2]
[402903203,1768968639345,-150.53438118,0.0001579,2]
[402903204,1768968639357,-150.0,0.0001579,2]
[402903205,1768968639366,-272.37859374,0.0001579,2]
[402903206,1768968639376,-151.752773,0.0001579,2]
[402903207,1768968639386,-718.0,0.00015799,2]
[402903208,1768968639395,-201.1232536,0.00015927,2]
[402903209,1768968639405,-718.0,0.00015936,2]
[402903210,1768968639414,-168.0,0.00015988,2]
[402903211,1768968639423,-150.0,0.00016,2]
[402903212,1768968639433,-5068.16076614,0.00016005,5]
[402903213,1768968639442,-328.0,0.00016009,2]
[402903214,1768968639452,-168.0,0.00016021,2]
[402903215,1768968639461,-557.5788265,0.00016027,2]
[402903216,1768968639470,-311.85701,0.00016027,2]
[402903217,1768968639479,-461.67526834,0.00016027,2]
[402903218,1768968639488,-2230.315306,0.00016027,2]
[402903219,1768968639497,-328.0,0.00016029,2]
[402903220,1768968639506,-718.0,0.00016073,2]
[402903221,1768968639515,-234.59498067,0.00016087,9]
[402903222,1768968639525,-416.82058311,0.00016087,9]
[402903223,1768968639534,-4791.0,0.00016121,2]
[402903224,1768968639543,-297.5,0.00016139,7]
[402903225,1768968639553,-1041.66666667,0.00016186,2]
[402903228,1768968639563,-328.0,0.00016196,2]
[402903230,1768968639572,-718.0,0.0001621,2]
[402903231,1768968639581,-7896.3030135,0.00016229,2]
[402903232,1768968639590,-160.0,0.000163,2]
[402903233,1768968639600,-160.0,0.000163,2]
[402903234,1768968639609,-160.0,0.000163,2]
[402903235,1768968639619,-160.0,0.000163,2]
[402903236,1768968639628,-160.0,0.000163,3]
[402903237,1768968639638,-160.5850682,0.000163,3]
[402903238,1768968639647,-718.0,0.00016347,2]
[402903239,1768968639657,-168.0,0.00016407,2]
[402903240,1768968639666,-500.0,0.00016438,2]
[402903241,1768968639675,-500.0,0.00016438,2]
[402903242,1768968639684,-500.0,0.00016438,2]
[402903243,1768968639693,-500.0,0.00016438,2]
[402903244,1768968639702,-500.0,0.00016438,2]
[402903245,1768968639712,-500.0,0.00016438,2]
[402903247,1768968639867,-500.0,0.00016438,2]
[402903248,1768968639877,-500.0,0.00016438,2]
[402903249,1768968639886,-500.0,0.00016438,2]
[402903250,1768968639895,-500.0,0.00016438,2]
[402903251,1768968639904,-500.0,0.00016438,2]
[402903252,1768968639912,-500.0,0.00016438,2]
[402903253,1768968639921,-500.0,0.00016438,2]
[402903254,1768968639930,-500.0,0.00016438,2]
[402903255,1768968639939,-557.73769081,0.00016438,2]
[402903256,1768968639949,-160.60947319,0.00016438,2]
[402903257,1768968639958,-500.0,0.00016438,2]
[402903258,1768968639967,-718.0,0.00016484,2]
[402903259,1768968639976,-578.20924308,0.00016575,2]
[402903260,1768968639986,-241.16065155,0.00016575,2]
[402903261,1768968639995,-478.75725327,0.00016575,2]
[402903262,1768968640004,-2312.83697232,0.00016575,2]
[402903263,1768968640013,-587.0,0.00016593,2]
[402903264,1768968640022,-224.40913336,0.00016616,2]
[402903265,1768968640032,-718.0,0.00016621,2]
[402903266,1768968640041,-779.0,0.000167,2]
[402903267,1768968640051,-500.0,0.00016712,2]
[402903268,1768968640060,-348.0,0.00016747,2]
[402903269,1768968640069,-718.0,0.00016758,2]
[402903270,1768968640078,-234.59498067,0.00016774,17]
[402903271,1768968640087,-416.82058311,0.00016774,17]
[402903272,1768968640096,-289.42302171,0.00016796,2]
[402903273,1768968640105,-328.0,0.00016812,2]
[402903274,1768968640114,-328.0,0.00016815,2]
[402903275,1768968640124,-152428.5205464,0.0001683,2]
[402903276,1768968640133,-3902.513439,0.0001683,2]
[402903277,1768968640143,-204.04236409,0.0001687,2]
[402903278,1768968640152,-13491.02587,0.0001687,7]
[402903279,1768968640161,-1775.3252061,0.0001687,2]
[402903280,1768968640170,-167.61069879,0.00016878,2]
[402903281,1768968640179,-150.12,0.00016885,2]
[402903282,1768968640188,-150.0,0.00016885,2]
[402903283,1768968640196,-629.0,0.00016885,2]
[402903284,1768968640205,-1368.0,0.00016885,2]
[402903285,1768968640214,-2148.0,0.00016885,2]
[402903286,1768968640223,-718.0,0.00016895,2]
[402903287,1768968640233,-266.0,0.00016976,2]
[402903288,1768968640242,-500.0,0.00016986,2]
[402903289,1768968640250,-871.8,0.00017,10]
[402903290,1768968640259,-6377.578785,0.00017,7]
[402903291,1768968640269,-20222.07903,0.00017023,7]
[402903292,1768968640278,-2180.547938,0.00017023,7]
[402903293,1768968640287,-718.0,0.00017032,2]
[402903294,1768968640296,-168.0,0.00017053,2]
[402903295,1768968640305,-599.60298507,0.00017123,2]
[402903296,1768968640314,-496.47127164,0.00017123,2]
[402903297,1768968640323,-2398.4119403,0.00017123,2]
[402903298,1768968640331,-338.0,0.00017124,2]
[402903299,1768968640341,-718.0,0.00017169,2]
[402903300,1768968640350,-500.0,0.0001726,2]
[402903301,1768968640359,-439.0,0.00017278,2]
[402903302,1768968640367,-403.0,0.00017291,2]
[402903303,1768968640377,-396.1285975,0.00017294,2]
[402903304,1768968640386,-718.0,0.00017306,2]
[402903305,1768968640394,-328.0,0.00017337,2]
[402903306,1768968640403,-3877.0,0.000174,2]
[402903307,1768968640412,-1986.049276,0.00017414,7]
[402903308,1768968640421,-2954.565591,0.00017414,7]
[402903309,1768968640430,-21086.139687,0.00017414,7]
[402903310,1768968640439,-6318.787404,0.00017414,7]
[402903311,1768968640447,-5841.661174,0.00017414,7]
[402903312,1768968640456,-718.0,0.00017443,2]
[402903314,1768968640466,-234.59498067,0.0001746,25]
[402903316,1768968640476,-416.82058311,0.0001746,25]
[402903318,1768968640487,-1662.674311,0.0001746,7]
[402903320,1768968640496,-5425.894438,0.0001746,7]
[402903322,1768968640506,-6799.482961,0.0001746,7]
[402903324,1768968640515,-4808.103416,0.0001746,7]
[402903325,1768968640525,-327.91215311,0.00017486,2]
[402903327,1768968640534,-507.25697116,0.0001749,2]
[402903330,1768968640544,-614.3,0.00017496,2]
[402903331,1768968640555,-7127.271339,0.00017498,7]
[402903333,1768968640564,-4063.816969,0.00017501,7]
[402903336,1768968640573,-4396.888281,0.00017534,7]
[402903337,1768968640583,-500.0,0.00017534,2]
[402903340,1768968640592,-11267.364994,0.00017551,7]
[402903342,1768968640602,-2546.163644,0.00017551,7]
[402903344,1768968640611,-249.401146,0.00017551,7]
[402903346,1768968640622,-718.0,0.0001758,2]
[402903348,1768968640631,-2139.30030526,0.000176,2]
[402903350,1768968640641,-7896.3030135,0.00017657,2]
[402903352,1768968640649,-5337.465031,0.0001767,7]
[402903354,1768968640658,-621.78829552,0.00017671,2]
[402903356,1768968640667,-514.84070869,0.00017671,2]
[402903358,1768968640676,-2487.15318209,0.00017671,2]
[402903359,1768968640686,-151.0,0.000177,2]
[402903361,1768968640696,-718.0,0.00017717,2]
[402903363,1768968640705,-256.7778,0.000178,2]
[402903365,1768968640715,-14042.68535174,0.000178,3]
[402903368,1768968640724,-500.0,0.00017808,2]
[402903370,1768968640733,-150.1369429,0.00017808,2]
[402903371,1768968640742,-718.0,0.00017854,2]
[402903374,1768968640751,-5000.0,0.00017876,2]
[402903376,1768968640763,-739.74540953,0.00017991,2]
[402903378,1768968640772,-39501.0,0.00018,7]
[402903380,1768968640782,-146670.53018173,0.00018,2]
[402903382,1768968640794,-1002.87781628,0.00018,2]
[402903384,1768968640804,-328.78905534,0.00018,2]
[402903386,1768968640813,-224.11164834,0.00018,2]
[402903388,1768968640822,-195.2664527,0.00018,2]
[402903390,1768968640833,-892.39118469,0.00018,2]
[402903392,1768968640842,-674.70834674,0.00018,2]
[402903394,1768968640852,-1227.45666962,0.00018,2]
[402903396,1768968640864,-673.95079518,0.00018,2]
[402903398,1768968640873,-10785.703283,0.00018,7]
[402903400,1768968640883,-1002.465503,0.00018,2]
[402903402,1768968640892,-3510.66,0.00018,3]
[402903404,1768968640901,-235.92931861,0.00018027,3]
[402903406,1768968640910,-500.0,0.00018082,2]
[402903408,1768968640919,-234.59498067,0.00018147,32]
[402903410,1768968640929,-416.82058311,0.00018147,32]
[402903412,1768968640939,-308.0,0.00018182,2]
[402903414,1768968640948,-1002.87781628,0.000182,2]
[402903416,1768968640958,-328.78905534,0.000182,2]
[402903418,1768968640966,-892.39118469,0.000182,2]
[402903420,1768968640975,-674.70834674,0.000182,2]
[402903422,1768968640984,-1227.45666962,0.000182,2]
[402903424,1768968640993,-673.95079518,0.000182,2]
[402903426,1768968641002,-483.867774,0.00018218,7]
[402903428,1768968641011,-698.94837798,0.00018219,2]
[402903430,1768968641020,-533.88981491,0.00018219,2]
[402903432,1768968641030,-2579.17784983,0.00018219,2]
[402903434,1768968641040,-5707.094743,0.0001824,7]
[402903436,1768968641049,-2679.91767271,0.0001824,7]
[402903438,1768968641059,-160.49,0.00018346,2]
[402903440,1768968641068,-500.0,0.00018356,2]
[402903442,1768968641077,-614.3,0.0001836,2]
[402903444,1768968641086,-1002.87781628,0.000184,2]
[402903446,1768968641095,-328.78905534,0.000184,2]
[402903448,1768968641105,-892.39118469,0.000184,2]
[402903450,1768968641114,-674.70834674,0.000184,2]
[402903452,1768968641123,-1227.45666962,0.000184,2]
[402903454,1768968641133,-673.95079518,0.000184,2]
[402903456,1768968641142,-281.0,0.000185,2]
[402903458,1768968641152,-1002.87781628,0.000185,2]
[402903460,1768968641161,-328.78905534,0.000185,2]
[402903462,1768968641170,-892.39118469,0.000185,2]
[402903464,1768968641178,-674.70834674,0.000185,2]
[402903466,1768968641187,-1227.45666962,0.000185,2]
[402903468,1768968641196,-673.95079518,0.000185,2]
[402903470,1768968641205,-1000.0,0.000185,2]
[402903472,1768968641214,-500.0,0.000185,2]
[402903474,1768968641223,-500.0,0.000185,2]
[402903476,1768968641231,-159.15,0.00018508,2]
[402903478,1768968641240,-3877.0,0.00018539,2]
[402903480,1768968641249,-446.66961212,0.00018616,13]
[402903482,1768968641258,-500.0,0.0001862,2]
[402903484,1768968641267,-500.0,0.0001862,2]
[402903486,1768968641276,-500.0,0.0001862,2]
[402903488,1768968641285,-500.0,0.0001862,2]
[402903490,1768968641294,-500.0,0.0001862,2]
[402903492,1768968641303,-500.0,0.0001862,2]
[402903494,1768968641311,-646.85640569,0.0001862,2]
[402903495,1768968641320,-2100523.85210674,0.0001862,2]
[402903497,1768968641329,-500.0,0.0001863,2]
[402903499,1768968641339,-159.17,0.00018638,2]
[402903501,1768968641348,-3875.0,0.0001866,2]
[402903503,1768968641357,-1002.87781628,0.000187,2]
[402903505,1768968641366,-328.78905534,0.000187,2]